Cogmind - Beta 13 @@@ ROGUE MODE // 2024.04.13 @ 18:19:13 Player: Dosh Result: Destroyed by D-53 Grenadier with Mini Grenade Launcher Performance ------------- Evolutions (0) 0 Regions Visited (4) 800 Robots Destroyed (33) 165 Value Destroyed (763) 763 Prototype IDs (6) 120 Alien Tech Used (0) 0 Bonus (33) 33 TOTAL SCORE: 1881 Bonus ------- Follower Combat Kills 33 Cogmind --------- Core Integrity 0/250 Matter 300/300 Energy 146/150 System Corruption 0% Temperature Cool (2) Movement Walking (190) Ox1 Location -9/Mines Parts ------- > --- POWER (1) -------- Light Angular Momentum Engine > --- PROPULSION (2) --- Carbon-fiber Leg Carbon-fiber Leg > --- UTILITY (2) ------ Large Storage Unit > --- WEAPON (2) ------- Heavy Flail Mining Claw > --- INVENTORY (15) --- Ion Engine Ion Engine Light Treads Light Treads Aluminum Leg Aluminum Leg Carbon-fiber Leg Wheel Structural Scanner Light Armor Plating Hacking Suite Improved Trap Extractor (0/6) Light Assault Rifle Grenade Launcher Datajack Peak State ------------ > --- POWER ------------ Light Angular Momentum Engine > --- PROPULSION ------- Carbon-fiber Leg Carbon-fiber Leg > --- UTILITY ---------- Large Storage Unit Light Armor Plating > --- WEAPON ----------- Heavy Flail Mining Claw > --- INVENTORY -------- Ion Engine Ion Engine Light Treads Light Treads Aluminum Leg Aluminum Leg Carbon-fiber Leg Wheel Structural Scanner Light Armor Plating Hacking Suite Improved Trap Extractor Light Assault Rifle Grenade Launcher Datajack [Rating: 19] Favorites ----------- Power Light Angular Momentum Engine Engine Light Angular Momentum Engine Propulsion Carbon-fiber Leg Treads Light Treads Leg Carbon-fiber Leg Wheel Wheel Utility Large Storage Unit Storage Large Storage Unit Protection Light Armor Plating Weapon Assault Rifle Ballistic Gun Assault Rifle Launcher Grenade Launcher Impact Weapon Heavy Flail Slashing Weapon Mining Claw Build | -11 -10 -10 -10 -9 ------- Run | Yrd Mat Min Exi Min Slots Evolved . | . . . . . Power . | . . . . . Propulsion . | . . . . . Utility . | . . . . . Weapon . | . . . . . Parts Attached 27 | 7 11 9 . . Power 2 | 1 . 1 . . Engine 2 | 1 . 1 . . Core . | . . . . . Reactor . | . . . . . Propulsion 8 | 3 2 3 . . Treads 2 | 1 1 . . . Leg 4 | 2 . 2 . . Wheel 2 | . 1 1 . . Hover . | . . . . . Flight . | . . . . . Utility 4 | 1 2 1 . . Device . | . . . . . Storage 2 | 1 1 . . . Processor . | . . . . . Hackware . | . . . . . Protection 2 | . 1 1 . . Artifact . | . . . . . Weapon 13 | 2 7 4 . . Energy Gun . | . . . . . Energy Cannon . | . . . . . Ballistic Gun 7 | 2 4 1 . . Ballistic Cannon . | . . . . . Launcher 4 | . 3 1 . . Special Weapon . | . . . . . Impact Weapon 1 | . . 1 . . Slashing Weapon 1 | . . 1 . . Piercing Weapon . | . . . . . Special Melee Weapon . | . . . . . Unidentified Prototypes . | . . . . . Parts Lost 5 | . 2 2 . 1 Power . | . . . . . Propulsion 1 | . 1 . . . Utility 2 | . 1 . . 1 Weapon 2 | . . 2 . . Highest Loss Streak 2 | . 2 2 . 1 To Critical Strikes . | . . . . . Average Slot Usage (%) 95 | . 94 92 100 100 Engine 14 | . 14 14 14 14 Treads 3 | . 2 7 . . Leg 19 | . 15 13 28 28 Wheel 5 | . 9 6 . . Storage 14 | . 14 14 14 14 Protection 10 | . 9 7 14 14 Ballistic Gun 14 | . 27 11 . . Impact Weapon 6 | . . 8 14 14 Slashing Weapon 6 | . . 7 14 14 Naked Turns . | . . . . . Heaviest Build 37 | 13 33 37 37 37 Greatest Support 30 | 20 20 30 30 30 Greatest Overweight (x) 3 | 1 3 3 1 1 Average Overweight (x) 1 | . 2 2 1 1 Largest Inventory Capacity 15 | 8 15 15 15 15 Average Capacity 14 | 7 14 15 15 15 Most Carried 15 | 3 12 15 15 15 Average Carried 11 | 1 9 14 15 15 Final Capacity 15 | 8 15 15 15 15 Final Carried 15 | 3 11 15 15 15 Class Distribution -------------------- 100% | Mutant Dominant Class ---------------- Mutant | -10/Materials Mutant | -10/Mines Mutant | -10/Exiles Mutant | -9/Mines Resources | -11 -10 -10 -10 -9 ----------- Run | Yrd Mat Min Exi Min Matter Collected 895 | 219 570 106 . . Remotely . | . . . . . Salvage Created 890 | . 633 192 . 65 Parts 53 | . 44 9 . . Haulers Intercepted 1 | . 1 . . . Recyclers Shooed 2 | . 1 1 . . Parts Field Recycled . | . . . . . Retrieved Matter . | . . . . . Parts Self-Destructed . | . . . . . Prevented . | . . . . . Kills | -11 -10 -10 -10 -9 ------- Run | Yrd Mat Min Exi Min Combat Hostiles Destroyed 23 | . 16 3 . 4 Melee 4 | . . 1 . 3 Guns 6 | . 6 . . . AOE 12 | . 10 2 . . Classes Destroyed 9 | . 7 1 . 1 Worker 1 | . . . . 1 Builder 2 | . 2 . . . Hauler 1 | . 1 . . . Recycler 2 | . 1 1 . . Operator 1 | . 1 . . . Watcher 3 | . 3 . . . Swarmer 7 | . 3 . . 4 Grunt 15 | . 13 2 . . Sentry 1 | . . 1 . . Best Kill Streak 9 | . 9 2 . 4 Combat Bots Only 6 | . 6 2 . 4 Max Kills in Single Turn 3 | . 3 1 . 1 Gunslinging . | . . . . . Exploded 2 | . 2 1 . . Melee 1 | . . 1 . 1 Uniques/NPCs Destroyed . | . . . . . Combat | -11 -10 -10 -10 -9 -------- Run | Yrd Mat Min Exi Min Hostile Shots Fired 90 | . 63 8 . 19 Missed 24 | . 18 2 . 4 Damage Taken 1008 | . 563 128 . 317 Core 254 | . 121 . . 133 Absorbed by Shields . | . . . . . Core Remaining (%) 100 | 100 . . . . Volleys Fired 59 | . 57 2 . . Largest 2 | . 2 2 . . Hottest 50 | . 50 50 . . Shots Fired 118 | . 114 4 . . Gun 105 | . 103 2 . . Cannon . | . . . . . Launcher 13 | . 11 2 . . Special . | . . . . . Kinetic 105 | . 103 2 . . Thermal . | . . . . . Explosive 13 | . 11 2 . . Electromagnetic . | . . . . . Robot Hit Streak 13 | . 9 13 . . Robot Miss Streak 6 | . 6 . . . Penetration Max . | . . . . . Secondary Targets . | . . . . . Shots Hit Robots 70 | . 57 8 . 5 Core Hits 42 | . 37 5 . . Critical Kills . | . . . . . Critical Parts Destroyed 3 | . 1 . . 2 Critical Strikes 3 | . 1 . . 2 Destroy 1 | . 1 . . . Smash 2 | . . . . 2 Melee Attacks 10 | . . 4 . 6 Impact 10 | . . 4 . 6 Slashing . | . . . . . Piercing . | . . . . . Sneak Attacks 2 | . . 1 . 1 Combat Hostiles . | . . . . . Follow-up Attacks . | . . . . . Damage Inflicted 2084 | . 1419 347 . 318 Guns 712 | . 682 30 . . Cannons . | . . . . . Explosions 843 | . 733 110 . . Melee 525 | . . 207 . 318 Ramming 4 | . 4 . . . Kinetic 712 | . 682 30 . . Thermal . | . . . . . Explosive 843 | . 733 110 . . Electromagnetic . | . . . . . Impact 525 | . . 207 . 318 Slashing . | . . . . . Piercing . | . . . . . Highest Corruption . | . . . . . Average Corruption . | . . . . . Corruption Purged . | . . . . . Corruption Blocked . | . . . . . Overload Shots . | . . . . . Overflow Damage 310 | . . 72 . 238 Projectiles . | . . . . . Explosions . | . . . . . Melee 310 | . . 72 . 238 Knockbacks 1 | . . 1 . . Impact 1 | . . 1 . . Kinetic . | . . . . . Secondary . | . . . . . Self-Inflicted Damage 75 | . 75 . . . Shots 4 | . 4 . . . Rammed 1 | . 1 . . . Targets Rammed 1 | . 1 . . . Kicked . | . . . . . Crushed . | . . . . . Highest Temperature 33 | . 33 9 . . Average Temperature 15 | . 15 5 . . Received Heat Transfer 285 | . 234 51 . . Siege Activations . | . . . . . Robots Corrupted . | . . . . . Combat Hostiles . | . . . . . Parts Fried 5 | . . 1 . 4 Impact Corruptions 10 | . . 3 . 7 Robots Melted . | . . . . . Combat Hostiles . | . . . . . Parts Melted . | . . . . . Heat Transferred . | . . . . . Parts Sabotaged . | . . . . . Parts Stolen . | . . . . . Parts Stripped . | . . . . . Power Chain Reactions . | . . . . . Alert | -11 -10 -10 -10 -9 ------- Run | Yrd Mat Min Exi Min Peak Influence 358 | . 358 175 . 95 Initial 90 | . . 90 . . Average 138 | . 199 104 . 67 Maximum Alert Level 1 | . 1 . . . Low Security (%) 68 | 100 32 100 . 100 Level 1 31 | . 67 . . . Level 2 . | . . . . . Level 3 . | . . . . . Level 4 . | . . . . . Level 5 . | . . . . . High Security . | . . . . . Max Security . | . . . . . Squads Dispatched 7 | . 7 . . . Investigation 5 | . 5 . . . Extermination . | . . . . . Reinforcement 2 | . 2 . . . Assault . | . . . . . Garrison . | . . . . . Intercept . | . . . . . Searches Triggered . | . . . . . Construction Impeded . | . . . . . Haulers Reinforced . | . . . . . Active Scanning Responses . | . . . . . Cargo Convoy Interrupts . | . . . . . Stealth | -11 -10 -10 -10 -9 --------- Run | Yrd Mat Min Exi Min Distress Signals 1 | . 1 . . . Communications Jammed . | . . . . . Distress Signals . | . . . . . Times Spotted 37 | . 26 4 . 7 Peak Tracking Total 5 | . 5 2 . 4 Tactical Retreats 1 | . 1 . . . Traps | -11 -10 -10 -10 -9 ------- Run | Yrd Mat Min Exi Min Traps Triggered 6 | . 4 2 . . Indirectly . | . . . . . Trap Hack Attempts . | . . . . . Triggered . | . . . . . Disarmed . | . . . . . Reprogrammed . | . . . . . Reused . | . . . . . Traps Extracted . | . . . . . Installed . | . . . . . Triggered . | . . . . . Machines | -11 -10 -10 -10 -9 ---------- Run | Yrd Mat Min Exi Min Machines Disabled 2 | . 2 . . . Max in Single Turn 1 | . 1 . . . Machines Repaired . | . . . . . Machines Dismantled . | . . . . . Machines Sabotaged . | . . . . . Overloaded Fab Kills . | . . . . . Hacking | -11 -10 -10 -10 -9 --------- Run | Yrd Mat Min Exi Min Machines Accessed 6 | . 4 1 1 . Terminals 4 | . 4 . . . Fabricators . | . . . . . Repair Stations . | . . . . . Recycling Units . | . . . . . Scanalyzers . | . . . . . Garrison Access . | . . . . . Total Hacks 22 | . 20 1 1 . Successful 10 | . 8 1 1 . Failed 12 | . 12 . . . Catastrophic 2 | . 2 . . . Database Lockouts . | . . . . . Manual 16 | . 16 . . . Terminals 20 | . 20 . . . Fabricators . | . . . . . Repair Stations . | . . . . . Recycling Units . | . . . . . Scanalyzers . | . . . . . Garrison Access . | . . . . . Terminal Hacks 10 | . 8 1 1 . Record 1 | . . . 1 . Robot Analysis 2 | . 2 . . . Prototype ID Bank 6 | . 6 . . . Open Door 1 | . . 1 . . Fabricator Hacks . | . . . . . Repair Station Hacks . | . . . . . Recycling Unit Hacks . | . . . . . Scanalyzer . | . . . . . Garrison Access Hacks . | . . . . . Unauthorized Hacks . | . . . . . Terminals . | . . . . . Fabricators . | . . . . . Repair Stations . | . . . . . Recycling Units . | . . . . . Scanalyzers . | . . . . . Garrison Access . | . . . . . Data Cores Recovered . | . . . . . Used . | . . . . . Hacking Detections 4 | . 4 . . . Full Trace Events 1 | . 1 . . . Feedback Events . | . . . . . Feedback Blocked . | . . . . . Robot Schematics Acquired . | . . . . . Robots Built . | . . . . . Authchips . | . . . . . Time . | . . . . . Total Robot Build Rating . | . . . . . Part Schematics Acquired . | . . . . . Parts Built . | . . . . . Authchips . | . . . . . Time . | . . . . . Total Part Build Rating . | . . . . . Parts Repaired . | . . . . . Time . | . . . . . Parts Recycled . | . . . . . Recycled Matter . | . . . . . Retrieved Matter . | . . . . . Retrieved Components . | . . . . . Parts Scanalyzed . | . . . . . Part Schematics Acquired . | . . . . . Parts Damaged . | . . . . . Bothacking | -11 -10 -10 -10 -9 ------------ Run | Yrd Mat Min Exi Min Used RIF Installer . | . . . . . Robots Hacked . | . . . . . Non-combat . | . . . . . Combat . | . . . . . Robot Hacks Applied . | . . . . . Relay Couplers Released . | . . . . . Fabnet Peak Effective % . | . . . . . Robots Rewired . | . . . . . Allies Hacked . | . . . . . Hacks Repelled . | . . . . . Allies | -11 -10 -10 -10 -9 -------- Run | Yrd Mat Min Exi Min Total Allies 2 | . . 2 . . Largest Group 2 | . . 2 1 . Highest-Rated Group 46 | . . 46 15 . Highest-Rated Ally 31 | . . 31 15 . Total Orders . | . . . . . Ally Attacks 3 | . . 3 . . Total Damage 63 | . . 63 . . Kills 1 | . . 1 . . Allies Corrupted . | . . . . . Allies Melted . | . . . . . Intel | -11 -10 -10 -10 -9 ------- Run | Yrd Mat Min Exi Min Robot Analysis Total 2 | . 2 . . . Derelict Logs Recovered 2 | . . 2 . . Drone Launches . | . . . . . Drone Recoveries . | . . . . . Exploration | -11 -10 -10 -10 -9 ------------- Run | Yrd Mat Min Exi Min Turns Passed 2340 | 83 930 604 375 348 Spaces Moved 1333 | 61 533 365 198 176 Core 5 | 5 . . . . Treads 2 | 1 . 1 . . Legs 710 | 55 142 139 198 176 Wheels 616 | . 391 225 . . Hover . | . . . . . Flight . | . . . . . Fastest Speed 50 | 50 110 110 190 190 Average Speed 152 | 116 135 147 190 190 Slowest Speed 260 | 190 190 260 190 190 Overloaded Moves . | . . . . . Propulsion Burnouts . | . . . . . Robots Hopped . | . . . . . Cave-ins Triggered . | . . . . . Exploration Rate (%) 53 | 3 90 74 59 40 Regions Visited 4 Branch Regions 3 Pre-discovered Areas 1 | . . 1 . . Known Exits Taken . | . . . . . Unknown Exits Taken 4 | 1 1 1 1 . Scrap Searched 3 | . . 1 . 2 Spaces Dug . | . . . . . Terrain Destroyed 63 | . 45 18 . . Melee . | . . . . . Projectile . | . . . . . AOE 63 | . 45 18 . . Terrain Rammed . | . . . . . Walls Destroyed . | . . . . . Machines Disabled . | . . . . . Actions | -11 -10 -10 -10 -9 --------- Run | Yrd Mat Min Exi Min Total 1494 | 70 624 421 197 182 Wait 45 | . 10 35 . . Move 1329 | 60 532 364 197 176 Hop . | . . . . . Pick Up 17 | 2 10 5 . . Fast Attach 12 | 7 2 3 . . Attach 4 | . 1 3 . . Detach 3 | 1 1 1 . . Swap 11 | . 8 3 . . Drop 3 | . 2 1 . . Fire 59 | . 57 2 . . Melee 10 | . . 4 . 6 Ram 1 | . 1 . . . Kick . | . . . . . Crush . | . . . . . Escape Stasis . | . . . . . Rewire . | . . . . . Trap . | . . . . . Miscellaneous . | . . . . . Route ------- -11/Scrapyard -10/Materials (discovered 5 exits: [*Mat x3] / *Min x2) -10/Mines (discovered 3 exits: [*Mat x2] / *Exi) -10/Exiles (discovered 2 exits: [*Min x2]) -9/Mines (discovered 1 exit: [*Mat]) History --------- Turn | Location | Event 18 | -11/Scrapyard | Discovered new exit (range 15) 84 | -11/Scrapyard | Entered Materials 265 | -10/Materials | Discovered new exit (range 13) 310 | -10/Materials | Build established: Mutant 451 | -10/Materials | Discovered new exit (range 12) 571 | -10/Materials | Discovered new exit (range 16) 672 | -10/Materials | Discovered new exit (range 16) 875 | -10/Materials | Discovered new exit (range 7) 1014 | -10/Materials | Entered Mines 1110 | -10/Mines | Met a Derelict who couldn't figure out how to use a Trap Extractor 1217 | -10/Mines | Learned 2 Materials zone layouts 1361 | -10/Mines | Learned location of Storage (-7) 1365 | -10/Mines | Discovered new exit (range 9) 1439 | -10/Mines | Discovered new exit (range 13) 1562 | -10/Mines | Deemed a non-threat by the Exiles lab entrance 1564 | -10/Mines | Discovered new exit (range 5) 1618 | -10/Mines | Entered Exiles 1618 | -10/Exiles | Found Exiles lab abandoned 1618 | -10/Exiles | Accompanied by 1 ally 1647 | -10/Exiles | Discovered new exit (range 15) 1978 | -10/Exiles | Discovered new exit (range 10) 1993 | -10/Exiles | Entered Mines 2093 | -9/Mines | Core integrity fell below 50% 2134 | -9/Mines | Discovered new exit (range 13) 2329 | -9/Mines | Assembled infested the area 2340 | -9/Mines | Core integrity fell below 20% 2341 | -9/Mines | Destroyed by D-53 Grenadier with Mini Grenade Launcher Last Messages --------------- 02135_ K-01 Serf collects debris. 02252_ Searching scrap... 02252_ Found Beam Rifle. 02252_ Found Imp. Aluminum Leg. 02252_ Found Core Shielding. 02252_ Found 19 Matter. 02329_ ALERT: Infestation in the mines, dispatching Demolisher response squad. 02337_ C-30 ARC bursts open, deploying its payload. 02337_ D-53 Grenadier unfolds itself. 02337_ T-07 Excavator destroyed. 02337_ U-05 Engineer lays Concrete. 02337_ U-05 Engineer destroyed. 02338_ as-23887 sneak attacks. 02338_ T-07 Excavator system corrupted by crushing effect. 02338_ T-07 Excavator knocked back. 02339_ K-01 Serf collects debris. 02339_ K-01 Serf destroyed. 02340_ The unstable cave ceiling collapses. 02341_ Lgt. Armor Plating destroyed. Map ----- +----------------------------------------------------+ | ?????????????????????? ### #??? | | ?????????????????????# ?## #??? | | ??????????????????????#####???# #??? | | ??????????????????????????????# #??? | | ??????????????????????????????## ##??? | | ???????????????????????????????####### ##???? | | ?????????????????????????????????????## #????? | | ??????????????????????????????????????## ##???? | | ???????????????????????????????????????## #???? | | ???????????????????????????????????????## #???? | | ??????????????????????????????????????## #???? | | ????????????????????????????????####### #???? | | ???????????????????????????????## ## #???? | | ???????????????????????????????# ##???? | | ??????????????????????????????## #????? | | ?????????????????????????????## #????? | | ?????????????????????????????# ##????? | | ?????????????????????????????# ###?????? | | ????????????????????????????## < ##???????? | | ?????????????????##########?# #????????? | | ????????????##??## ### #######??? | | ????#### ## # ## ### ### #??? | | ????# ## #?## #### ###? | | ???????# # ##?####??# #? | | ??????????????# ## ######### #? | | ??????????????## @ # # #### #? | | ???????????????## | d% #??# #? | | ????????????????# ## d #??# #? | | ????????????????# ?## %= ### ##??# #? | | ????????????????# ??# ##?#### #???# #? | | ???????????????? ??# t##?????##?### #? | | ???????????????? ??# ## ###????### #? | | ????????????????##??# ##### ###### #? | | ???????????????????# #???## =!##? | | ???????????????????# #????# [%#?? | | ???????????????????## ##????## ##### ##?? | | ????????????????????####??????## ##???######??? | | ???????????????????????????????####????????????? | | ???????????????????????????????????????????????? | | | | | | | | | | | | | | | | | | | | | | | +----------------------------------------------------+ Best States ------------- Heat Dissipation 25 Energy Generation 18 Energy Capacity 250 Matter Stores 300 Matter Capacity 300 Sight Range 16 Terrain Scan Density 10 Armor Coverage 150 Evasion (%) 55 Recoil Reduction 1 Item Schematics ----------------- None Robot Schematics ------------------ None Fabricated ------------ Nothing Alien Tech Used ----------------- None Achievements -------------- None Challenges ------------ None Game ------ Seed ReactivePiercingPrototype Manual? 0 Play Time 00:08:50 Cumulative 331.8 hours Start 2024.04.13 @ 18:10:58 End 2024.04.13 @ 18:19:13 Sessions 1 Manual Loads 0 Difficulty Rogue Special Mode None Game No. 220 Rogue 220 Adventurer 0 Explorer 0 Win Type - Total 19 Types 12/2/2/1/1/0/0/1/0 Lore% 79 Gallery% 84 Achievement% 74 Wizard Run 0 Options --------- Layout 0 ASCII 0 Keyboard 1 Movement Numpad Keybinds 0 Fullscreen 2 Font 18/SmallcapsGlow Map View 76x50 Zoom Use 0% Tactical HUD 1 Map Filters NONE Filters NONE Steam 1 RUN: b42af3db-342e-4743-801b-5fb5f296d2ca